bitfinex-derivatives/quotes_SOLF0:USTF0_20250720
["timestamp","ask_amount","ask_price","bid_price","bid_amount"]
[1753052218089,8.6377,180.81,180.8,106.32]
[1753052218791,8.6774,180.82,180.81,3.22]
[1753052219682,8.6774,180.82,180.8,106.32]
[1753052219683,5.5277,180.81,180.8,106.32]
[1753052219880,8.6777,180.81,180.8,109.54]
[1753052220081,8.6777,180.81,180.8,106.32]
[1753052220588,3.15,180.87,180.81,3.22]
[1753052220791,0.96262897,180.88,180.83,3.22]
[1753052220987,5.5247,180.91,180.85,3.22]
[1753052221187,0.96240269,180.93,180.88,5.33958842]
[1753052221482,3.15,180.94,180.89,5.33958842]
[1753052221687,5.5245,180.92,180.9,3.22]
[1753052221988,3.15,180.92,180.89,2.11958842]
[1753052222192,3.15,180.92,180.91,3.22]
[1753052222391,5.26958842,180.94,180.88,106.3]
[1753052222589,3.15,180.93,180.88,106.3]
[1753052222787,3.15,180.94,180.88,109.52]
[1753052222983,3.15,180.94,180.88,106.3]
[1753052223296,3.15,180.94,180.9,3.22]
[1753052223590,3.15,180.93,180.89,3.45013141]
[1753052223791,8.6742,180.93,180.92,3.22]
[1753052224292,3.15,180.93,180.9,3.22]
[1753052224496,3.15,180.94,180.9,3.22]
[1753052224694,210.13245603,180.95,180.91,3.22]
[1753052224885,3.15,180.92,180.89,3.45013141]
[1753052225097,3.15,180.94,180.88,106.3]
[1753052225290,3.15,180.94,180.85,6.67013141]
[1753052225495,3.15,180.94,180.85,112.93013141]
[1753052225990,3.15,180.91,180.88,3.22]
[1753052226188,3.15,180.94,180.87,3.22]
[1753052226386,3.15,180.92,180.85,106.26]
[1753052226992,8.6761,180.86,180.85,106.26]
[1753052227291,8.6761,180.86,180.79,3.45013141]
[1753052227494,3.15,180.86,180.8,114.9877]
[1753052227696,3.15,180.86,180.8,109.46]
[1753052227892,5.5273,180.83,180.8,109.46]
[1753052228089,3.15,180.83,180.81,3.22]
[1753052228293,3.15,180.83,180.82,3.22]
[1753052228492,8.6766,180.85,180.82,3.22]
[1753052228695,8.6766,180.85,180.83,3.22]
[1753052229195,8.6767,180.84,180.81,8.7474]
[1753052229390,8.6767,180.84,180.81,5.5274]
[1753052229587,3.15,180.84,180.83,3.22]
[1753052229787,3.15,180.87,180.84,3.22]
[1753052229992,3.15,180.87,180.83,5.5269]
[1753052230192,8.6761,180.87,180.85,3.22]
[1753052230691,3.15,180.86,180.85,3.22]
[1753052230997,3.15,180.89,180.81,3.22]
[1753052231498,3.15,180.89,180.81,109.44]
[1753052231893,8.677,180.84,180.82,3.22]
[1753052232894,3.15,180.82,180.81,106.22]
[1753052233093,3.15,180.82,180.78,3.22]
[1753052233798,5.5282,180.8,180.78,3.22]
[1753052233997,8.6782,180.8,180.78,3.22]
[1753052234191,5.5282,180.8,180.77,3.22]
[1753052234593,5.5282,180.8,180.77,5.5286]
[1753052234798,8.6782,180.8,180.77,5.5286]
[1753052234995,8.6782,180.8,180.79,3.22]
[1753052235597,5.5282,180.8,180.79,3.22]
[1753052236104,3.15,180.83,180.77,3.22]
[1753052236400,3.45013141,180.87,180.77,3.22]
[1753052236596,3.15,180.85,180.77,3.22]
[1753052236798,0.96248254,180.89,180.8,3.22]
[1753052236992,0.96248254,180.89,180.82,3.22]
[1753052236993,3.15,180.87,180.82,3.22]
[1753052237295,3.15,180.87,180.81,106.2]
[1753052237600,3.15,180.87,180.83,3.22]
[1753052237900,8.6767,180.84,180.81,109.42]
[1753052238101,3.15,180.83,180.82,3.22]
[1753052239799,5.5269,180.84,180.82,3.22]
[1753052240000,4.41261395,180.89,180.82,3.22]
[1753052240001,8.677,180.83,180.82,3.22]
[1753052240897,3.15,180.88,180.82,3.22]
[1753052241301,3.15,180.87,180.81,106.2]
[1753052241602,3.15,180.87,180.82,3.22]
[1753052241802,8.6766,180.85,180.83,3.22]
[1753052242899,8.6766,180.85,180.81,111.7274]
[1753052243104,8.6766,180.85,180.84,3.22]
[1753052243801,3.15,180.85,180.84,3.22]
[1753052244301,11.0491,180.92,180.84,3.22]
[1753052244302,3.15,180.9,180.84,3.22]
[1753052244496,3.15,180.9,180.86,3.22]
[1753052244903,3.15,180.9,180.85,106.16]
[1753052245803,3.15,180.92,180.85,106.16]
[1753052246103,5.526,180.87,180.85,106.16]
[1753052246298,8.676,180.87,180.86,3.22]
[1753052247701,3.15,180.89,180.85,106.16]
[1753052247902,3.15,180.89,180.88,3.22]
[1753052248305,8.6755,180.89,180.88,3.22]
[1753052248502,3.15,180.89,180.88,3.22]
[1753052248696,3.08045434,180.94,180.85,106.16]
[1753052248697,3.0,180.87,180.85,106.16]
[1753052248903,3.0,180.86,180.85,109.26]
[1753052249407,8.5257,180.88,180.85,114.7862]
[1753052249605,3.0,180.87,180.86,3.1]
[1753052249899,5.5255,180.89,180.87,3.1]
[1753052250100,3.0,180.88,180.87,3.1]
[1753052251105,8.525,180.9,180.88,3.1]
[1753052251301,3.0,180.89,180.88,3.1]
[1753052251601,8.5249,180.9,180.89,3.1]
[1753052251803,3.0,180.9,180.89,3.1]
[1753052252008,3.0,180.88,180.86,3.1]
[1753052252201,0.96236277,180.94,180.86,3.1]
[1753052252202,5.11809157,180.92,180.86,3.1]
[1753052252403,3.0,180.91,180.86,3.1]
[1753052252802,3.0,180.89,180.88,3.1]
[1753052253408,3.0,180.93,180.87,3.1]
[1753052253600,3.0,180.93,180.88,2.11809157]
[1753052253808,3.0,180.92,180.89,3.1]
[1753052254002,3.0,180.91,180.9,3.1]
[1753052254203,3.0,180.9,180.88,3.1]
[1753052254399,5.5248,180.91,180.88,3.1]
[1753052254605,3.0,180.89,180.88,3.1]
[1753052254805,5.11809157,180.96,180.89,3.1]
[1753052255115,3.0,180.95,180.89,3.1]
[1753052255298,5.5252,180.9,180.87,106.06]
[1753052255503,3.0,180.89,180.88,3.1]
[1753052255702,2.11809157,180.92,180.87,106.06]
[1753052255907,8.5255,180.88,180.87,106.06]
[1753052256306,3.0,180.85,180.84,3.1]
[1753052256502,3.0,180.83,180.82,3.1]
[1753052256702,2.11809157,180.86,180.8,106.04]
[1753052256907,3.0,180.81,180.77,6.7413937]
[1753052257213,3.0,180.83,180.78,109.14]
[1753052257408,3.0,180.83,180.75,6.7413937]
[1753052257616,3.0,180.83,180.76,3.1]
[1753052257916,3.0,180.83,180.77,106.04]
[1753052258109,3.0,180.83,180.77,109.14]
[1753052258711,3.0,180.78,180.77,109.14]
[1753052258910,3.0,180.78,180.77,106.04]
[1753052259114,8.5286,180.78,180.77,106.04]
[1753052259607,3.0,180.78,180.77,106.04]
[1753052261518,3.0,180.8,180.78,3.1]
[1753052261718,3.0,180.8,180.79,3.1]
[1753052263117,3.45601371,180.86,180.79,8.6283]
[1753052263118,3.0,180.83,180.79,8.6283]
[1753052263318,3.0,180.85,180.78,3.1]
[1753052263715,3.0,180.85,180.78,8.6284]
[1753052263912,3.0,180.78,180.77,106.04]
[1753052264721,3.0,180.78,180.77,109.14]
[1753052265424,8.5286,180.78,180.77,106.04]
[1753052265923,3.0,180.75,180.73,148.22666499]
[1753052266120,3.0,180.75,180.74,109.12]
[1753052266312,3.0,180.76,180.75,3.1]
[1753052266622,3.0,180.79,180.74,106.02]
[1753052267123,5.5291,180.77,180.74,109.12]
[1753052267322,3.0,180.75,180.74,106.02]
[1753052267516,3.0,180.75,180.65,4.62330213]
[1753052267722,3.0,180.73,180.66,109.12]
[1753052268022,3.0,180.73,180.67,3.1]
[1753052268321,3.45601371,180.71,180.66,106.02]
[1753052268526,3.0,180.7,180.66,106.02]
[1753052268725,5.5319,180.68,180.66,106.02]
[1753052269016,3.0,180.69,180.66,109.12]
[1753052269223,3.45601371,180.72,180.66,109.12]
[1753052269224,8.5319,180.67,180.66,106.02]
[1753052269817,3.0,180.7,180.66,109.12]
[1753052270012,3.0,180.71,180.66,109.12]
[1753052270213,3.0,180.7,180.68,3.1]
[1753052270412,3.0,180.73,180.67,6.55601371]
[1753052270619,3.0,180.75,180.68,3.1]
[1753052270921,3.0,180.74,180.72,3.1]
[1753052271424,3.0,180.73,180.72,3.1]
[1753052271620,3.0,180.72,180.71,106.02]
[1753052271819,3.0,180.75,180.71,109.12]
[1753052272019,3.0,180.74,180.72,3.1]
[1753052272218,3.0,180.73,180.71,106.02]
[1753052272419,3.0,180.72,180.71,106.02]
[1753052273716,3.0,180.73,180.72,3.1]
[1753052273920,3.0,180.78,180.72,3.1]
[1753052274421,3.0,180.78,180.72,8.6304]
[1753052274615,5.5294,180.76,180.72,8.6304]
[1753052274821,3.0,180.75,180.73,3.1]
[1753052275021,3.0,180.74,180.73,3.1]
[1753052275921,3.0,180.78,180.67,6.55601371]
[1753052276123,3.0,180.72,180.62,371.62]
[1753052276324,3.0,180.7,180.68,3.1]
[1753052276522,3.0,180.69,180.68,3.1]
[1753052276729,8.5316,180.68,180.67,106.02]
[1753052277328,3.0,180.66,180.65,3.1]
[1753052277721,3.0,180.66,180.64,106.0]
[1753052277919,3.0,180.66,180.64,109.1]
[1753052278317,3.0,180.66,180.64,106.0]
[1753052278528,3.21,180.71,180.66,3.15]
[1753052279028,3.21,180.68,180.66,3.15]
[1753052279327,3.45601371,180.72,180.64,109.15]
[1753052279627,3.21,180.66,180.65,3.15]
[1753052280021,3.21,180.66,180.65,8.6826]
[1753052280222,3.21,180.7,180.65,3.15]
[1753052280425,8.7416,180.69,180.66,5.5323]
[1753052280624,3.21,180.71,180.65,3.15]
[1753052280925,3.21,180.73,180.65,3.15]
[1753052281128,3.21,180.71,180.65,3.15]
[1753052281322,6.66601371,180.71,180.66,106.0]
[1753052281623,3.21,180.69,180.68,3.15]
[1753052282123,3.21,180.74,180.67,3.15]
[1753052282324,3.21,180.74,180.67,3.45601371]
[1753052282623,3.21,180.74,180.68,3.15]
[1753052282823,3.21,180.72,180.67,3.45601371]
[1753052283022,3.21,180.72,180.66,106.0]
[1753052283023,3.21,180.72,180.7,3.15]
[1753052283333,8.7407,180.72,180.7,3.15]
[1753052283528,3.21,180.71,180.7,3.15]
[1753052283834,8.7407,180.71,180.7,3.15]
[1753052284131,3.21,180.73,180.67,3.15]
[1753052284325,11.0558,180.81,180.66,106.0]
[1753052284326,3.21,180.71,180.66,106.0]
[1753052284529,3.21,180.68,180.66,109.15]
[1753052284726,11.0558,180.81,180.67,3.15]
[1753052284727,3.21,180.73,180.67,3.15]
[1753052284934,3.21,180.73,180.71,3.15]
[1753052285325,3.21,180.73,180.72,3.15]
[1753052285520,3.21,180.74,180.72,3.15]
[1753052286224,3.21,180.75,180.7,105.98]
[1753052286429,3.21,180.79,180.71,3.15]
[1753052286729,5.5294,180.76,180.72,5.5302]
[1753052286931,3.21,180.79,180.71,3.15]
[1753052287327,3.21,180.77,180.71,3.15]
[1753052287529,3.21,180.77,180.7,105.98]
[1753052288033,3.21,180.77,180.7,109.13]
[1753052288532,5.53,180.74,180.71,5.5307]
[1753052288733,3.21,180.73,180.72,3.15]
[1753052289027,8.74,180.74,180.72,3.15]
[1753052289533,3.21,180.74,180.71,3.15]
[1753052289732,3.21,180.73,180.71,3.15]
[1753052289934,3.21,180.73,180.7,105.98]
[1753052289935,3.21,180.73,180.7,109.13]
[1753052290127,3.21,180.73,180.71,3.15]
[1753052290529,3.45601371,180.84,180.71,3.15]
[1753052290530,3.21,180.72,180.71,3.15]
[1753052291434,3.21,180.71,180.7,105.98]
[1753052291732,3.21,180.71,180.7,109.13]
[1753052291934,3.21,180.75,180.7,109.13]
[1753052292134,3.45601371,180.76,180.7,109.13]
[1753052292135,3.21,180.72,180.71,3.15]
[1753052293035,3.21,180.72,180.7,105.98]
[1753052293238,3.21,180.72,180.7,109.13]
[1753052293439,8.7404,180.72,180.7,109.13]
[1753052293828,3.21,180.71,180.7,109.13]
[1753052294737,8.7407,180.71,180.7,109.13]
[1753052294935,8.7407,180.71,180.7,105.98]
[1753052295143,8.7407,180.71,180.66,3.15]
[1753052295144,3.21,180.71,180.66,3.15]
[1753052295340,3.21,180.71,180.66,109.09]
[1753052295634,3.21,180.71,180.67,3.15]
[1753052296134,3.21,180.7,180.68,3.15]
[1753052296339,3.21,180.7,180.69,3.15]
[1753052296640,3.45601371,180.73,180.69,3.15]
[1753052296835,3.21,180.71,180.69,3.15]
[1753052297036,5.5305,180.72,180.7,3.15]
[1753052297337,8.7402,180.73,180.72,3.15]
[1753052297534,3.21,180.73,180.72,3.15]
[1753052298136,3.21,180.72,180.71,3.15]
[1753052299543,8.7404,180.73,180.72,3.15]
[1753052299837,3.21,180.73,180.72,3.15]
[1753052300044,3.21,180.77,180.69,3.45601371]
[1753052300235,3.21,180.77,180.7,3.15]
[1753052300442,3.21,180.77,180.7,8.6808]
[1753052300842,3.21,180.77,180.7,3.15]
[1753052301145,3.21,180.77,180.67,3.45601371]
[1753052301146,3.21,180.73,180.72,3.15]
[1753052301639,3.21,180.73,180.72,8.6804]
[1753052301843,3.21,180.75,180.74,3.15]
[1753052302040,3.21,180.75,180.72,3.15]
[1753052302240,3.21,180.74,180.7,3.15]
[1753052302436,3.21,180.74,180.72,3.15]
[1753052302644,3.45601371,180.79,180.71,105.9]
[1753052302850,3.21,180.77,180.71,109.35601371]
[1753052303138,2.12054827,180.81,180.72,5.27054827]
[1753052303340,3.21,180.76,180.75,3.15]
[1753052303544,8.7388,180.78,180.75,3.15]
[1753052303742,3.21,180.77,180.76,3.15]
[1753052304240,8.7389,180.77,180.72,2.12054827]
[1753052304441,3.21,180.76,180.75,3.15]
[1753052305545,3.21,180.79,180.75,3.15]
[1753052305744,3.21,180.82,180.75,3.15]
[1753052306647,3.21,180.8,180.75,3.15]
[1753052306839,3.21,180.8,180.76,3.15]
[1753052307441,3.21,180.77,180.71,105.9]
[1753052307645,5.33054827,180.77,180.72,3.15]
[1753052307941,8.74,180.74,180.71,105.9]
[1753052308143,3.07,180.73,180.7,8.6808]
[1753052308443,3.07,180.72,180.71,3.14]
[1753052308648,3.07,180.72,180.71,8.6707]
[1753052308850,3.07,180.76,180.71,3.14]
[1753052309344,3.07,180.78,180.73,3.14]
[1753052309538,3.07,180.78,180.74,2.12054827]
[1753052309942,3.07,180.78,180.77,3.14]
[1753052312541,8.5986,180.78,180.77,3.14]
[1753052312942,3.07,180.78,180.74,2.12054827]
[1753052313144,3.07,180.78,180.76,3.14]
[1753052313350,3.07,180.78,180.77,3.14]
[1753052313845,3.07,180.8,180.78,3.14]
[1753052314040,3.07,180.82,180.76,2.12054827]
[1753052314237,3.07,180.81,180.77,3.14]
[1753052314444,3.07,180.8,180.77,3.14]
[1753052314845,3.07,180.8,180.79,3.14]
[1753052315050,2.12054827,180.84,180.77,3.14]
[1753052315343,2.12054827,180.84,180.76,2.12054827]
[1753052315344,3.07,180.76,180.75,3.14]
[1753052315847,3.07,180.79,180.73,3.14]
[1753052316146,3.07,180.79,180.73,8.67]
[1753052317149,5.5292,180.77,180.74,5.5298]
[1753052317451,3.07,180.75,180.74,8.6698]
[1753052318153,5.5292,180.76,180.74,8.6698]
[1753052318355,8.5992,180.76,180.75,3.14]
[1753052318649,5.5296,180.75,180.74,3.14]
[1753052318848,5.5296,180.75,180.72,105.84]
[1753052318849,3.07,180.75,180.72,105.84]
[1753052319146,5.5315,180.69,180.66,3.14]
[1753052319348,3.07,180.68,180.65,3.14]
[1753052319945,5.5311,180.7,180.65,3.14]
[1753052320150,3.07,180.69,180.65,3.14]
[1753052320454,8.6013,180.69,180.67,3.14]
[1753052320755,19.3464682,180.81,180.62,374.76]
[1753052320756,3.07,180.67,180.62,374.76]
[1753052320953,3.07,180.67,180.63,3.14]
[1753052321149,3.07,180.65,180.63,3.14]
[1753052321456,3.07,180.65,180.64,3.14]
[1753052321855,3.07,180.67,180.62,2.12054827]
[1753052322154,3.07,180.67,180.66,3.14]
[1753052323157,3.07,180.69,180.64,2.12054827]
[1753052323455,3.07,180.71,180.63,2.12054827]
[1753052323659,3.07,180.68,180.66,3.14]
[1753052323856,3.07,180.67,180.66,3.14]
[1753052324355,3.07,180.67,180.66,8.6722]
[1753052324656,5.5318,180.68,180.64,5.5326]
[1753052324856,3.07,180.65,180.64,8.6726]
[1753052325056,3.07,180.66,180.64,3.14]
[1753052325552,3.07,180.66,180.65,3.14]
[1753052325951,3.07,180.65,180.64,3.14]
[1753052326153,3.07,180.67,180.65,3.14]
[1753052326558,7.65244827,180.68,180.65,3.14]
[1753052326758,3.07,180.66,180.65,3.14]
[1753052327256,3.07,180.7,180.65,3.14]
[1753052327558,3.07,180.69,180.66,5.5322]
[1753052327757,3.07,180.69,180.67,3.14]
[1753052327959,3.07,180.69,180.68,3.14]
[1753052328555,3.07,180.69,180.63,3.14]
[1753052329163,3.07,180.66,180.63,3.14]
[1753052329358,3.07,180.65,180.64,3.14]
[1753052331063,3.07,180.66,180.65,3.14]
[1753052331255,8.6023,180.66,180.61,105.78]
[1753052331458,3.07,180.65,180.62,3.14]
[1753052331960,3.07,180.66,180.62,3.14]
[1753052332555,2.12054827,180.68,180.62,3.14]
[1753052332762,3.07,180.68,180.63,3.14]
[1753052333260,3.07,180.68,180.67,3.14]
[1753052333662,8.6016,180.68,180.67,3.14]
[1753052333862,8.6016,180.68,180.65,3.14]
[1753052334062,3.07,180.67,180.64,5.5326]
[1753052334360,3.07,180.66,180.65,3.14]
[1753052335864,3.07,180.69,180.66,3.14]
[1753052336063,3.07,180.69,180.67,3.14]
[1753052336365,3.07,180.71,180.67,3.14]
[1753052336565,3.07,180.69,180.67,3.14]
[1753052336864,3.07,180.68,180.67,3.14]
[1753052338066,2.95,180.67,180.65,3.14]
[1753052338264,2.12054827,180.7,180.65,3.14]
[1753052338460,2.95,180.66,180.65,3.14]
[1753052338862,2.95,180.68,180.65,3.14]
[1753052339171,2.95,180.69,180.66,3.11]
[1753052339365,5.5318,180.68,180.62,3.11]
[1753052340370,8.4814,180.69,180.64,3.11]
[1753052340568,2.95,180.77,180.65,2.12054827]
[1753052340767,2.95,180.72,180.67,3.11]
[1753052341071,2.95,180.7,180.69,3.11]
[1753052341272,8.4806,180.72,180.69,3.11]
[1753052341470,8.4806,180.72,180.7,3.11]
[1753052341672,8.4806,180.72,180.71,3.11]
[1753052342170,2.95,180.71,180.7,3.11]
[1753052342765,2.12054827,180.75,180.68,3.11]
[1753052342970,2.95,180.7,180.65,3.11]
[1753052343172,2.95,180.68,180.63,3.11]
[1753052343473,2.95,180.66,180.64,3.11]
[1753052343672,2.95,180.66,180.65,3.11]
[1753052344384,2.95,180.7,180.66,3.11]
[1753052344672,3.86343074,180.69,180.68,3.11]
[1753052344872,2.95,180.7,180.68,3.11]
[1753052345069,2.12054827,180.74,180.68,3.11]
[1753052345281,2.95,180.7,180.69,3.11]
[1753052345478,3.86282306,180.7,180.69,3.11]
[1753052345678,3.86282306,180.7,180.69,8.6413]
[1753052346079,2.12054827,180.76,180.69,5.5313]
[1753052346374,5.5297,180.75,180.7,2.12054827]
[1753052346581,2.95,180.76,180.73,3.11]
[1753052346981,2.95,180.76,180.74,5.5296]
[1753052347178,2.95,180.76,180.75,3.11]
[1753052348080,5.5292,180.76,180.73,8.64]
[1753052348280,2.95,180.75,180.73,8.64]
[1753052348480,8.4796,180.75,180.73,3.11]
[1753052348680,2.95,180.75,180.73,3.11]
[1753052348985,2.95,180.75,180.74,3.11]
[1753052349579,2.95,180.75,180.73,3.11]
[1753052350380,2.95,180.79,180.73,3.11]
[1753052350586,2.95,180.82,180.75,3.11]
[1753052351085,2.95,180.76,180.75,3.11]
[1753052352381,2.95,180.75,180.73,3.11]
[1753052352985,2.95,180.75,180.73,8.64]
[1753052353187,2.95,180.78,180.73,3.11]
[1753052354291,2.95,180.74,180.73,3.11]
[1753052355792,2.12054827,180.79,180.73,8.6401]
[1753052355985,2.95,180.78,180.73,5.5301]
[1753052356191,2.95,180.75,180.74,3.11]
[1753052356992,8.4795,180.75,180.74,3.11]
[1753052357393,2.95,180.75,180.74,3.11]
[1753052359390,2.95,180.73,180.72,3.11]
[1753052359593,2.12054827,180.77,180.72,2.23815269]
[1753052359792,2.12054827,180.77,180.71,8.6407]
[1753052359997,5.5301,180.73,180.72,2.23907307]
[1753052360194,8.4801,180.73,180.72,2.23907307]
[1753052360791,2.95,180.81,180.73,3.11]
[1753052360990,2.95,180.81,180.7,105.56]
[1753052360991,2.95,180.81,180.77,3.11]
[1753052361196,8.4786,180.78,180.75,8.6394]
[1753052361494,2.95,180.77,180.76,2.23920591]
[1753052362896,2.95,180.77,180.72,3.11]
[1753052364997,2.95,180.73,180.72,3.11]
[1753052365200,2.95,180.77,180.68,107.58054827]
[1753052365393,2.95,180.77,180.72,2.12054827]
[1753052365600,2.95,180.77,180.73,3.11]
[1753052365798,2.95,180.76,180.68,105.46]
[1753052365994,5.07054827,180.74,180.66,3.11]
[1753052366198,2.12054827,180.74,180.66,105.44]
[1753052366397,5.5308,180.71,180.67,3.11]
[1753052366599,2.95,180.7,180.67,3.11]
[1753052366898,2.12054827,180.74,180.68,3.11]
[1753052367197,2.95,180.69,180.68,3.11]
[1753052367702,2.95,180.7,180.68,3.11]
[1753052367896,2.95,180.7,180.69,3.11]
[1753052368601,3.14,180.71,180.7,3.01]
[1753052370904,8.6707,180.71,180.7,3.01]
[1753052371604,3.14,180.82,180.7,3.01]
[1753052371908,3.14,180.77,180.7,3.01]
[1753052372097,5.5305,180.72,180.7,3.01]
[1753052372397,3.14,180.71,180.7,3.01]
[1753052372997,3.14,180.73,180.7,3.01]
[1753052373597,3.14,180.73,180.71,3.01]
[1753052373800,3.14,180.73,180.72,3.01]
[1753052374597,8.6701,180.73,180.72,3.01]
[1753052374800,3.45851166,180.75,180.67,3.01]
[1753052375004,3.14,180.71,180.68,3.01]
[1753052375202,3.14,180.71,180.66,105.44]
[1753052375400,3.14,180.76,180.7,3.01]
[1753052376696,3.14,180.77,180.7,3.01]
[1753052377295,5.5303,180.73,180.7,3.01]
[1753052377503,3.14,180.77,180.68,3.01]
[1753052377910,3.14,180.74,180.67,3.01]
[1753052378210,3.45851166,180.72,180.63,7.56818118]
[1753052378504,3.45851166,180.72,180.6,377.90948382]
[1753052378505,3.14,180.71,180.65,3.01]
[1753052379801,3.14,180.71,180.62,8.01669284]
[1753052380002,199.93681184,180.75,180.63,3.01]
[1753052380003,3.45851166,180.69,180.63,3.01]
[1753052380202,3.14,180.68,180.62,3.01]
[1753052380407,3.14,180.63,180.61,105.44]
[1753052380797,5.5336,180.62,180.58,3.01]
[1753052381011,3.14,180.63,180.6,3.01]
[1753052381605,3.18241938,180.63,180.6,3.01]
[1753052381898,8.6738,180.61,180.6,3.01]
[1753052382510,3.14,180.61,180.59,3.01]
[1753052383304,3.14,180.61,180.57,3.01]
[1753052383504,3.50093104,180.63,180.57,3.01]
[1753052383505,3.14,180.62,180.57,3.01]
[1753052384010,5.5343,180.6,180.57,3.01]
[1753052384303,5.57561938,180.63,180.57,3.01]
[1753052384500,0.04241938,180.63,180.57,3.01]
[1753052384902,3.18241938,180.63,180.57,3.01]
[1753052385608,0.04241938,180.63,180.58,3.01]
[1753052385810,0.04241938,180.63,180.59,3.01]
[1753052386102,8.71561938,180.63,180.62,3.01]
[1753052386604,3.18241938,180.63,180.62,3.01]
[1753052386808,3.18241938,180.63,180.6,108.49]
[1753052387205,3.18241938,180.63,180.6,105.48]
[1753052387410,8.6738,180.61,180.6,105.48]
[1753052388307,5.5346,180.59,180.56,3.01]
[1753052388512,3.14,180.58,180.57,3.01]
[1753052388708,3.14,180.58,180.56,105.46]
[1753052388910,3.14,180.58,180.56,108.47]
[1753052389711,3.14,180.57,180.56,108.47]
[1753052390709,5.5349,180.58,180.57,3.01]
[1753052391117,8.6749,180.58,180.57,3.01]
[1753052391812,3.14,180.58,180.57,3.01]
[1753052392111,3.14,180.59,180.58,3.01]
[1753052392416,2.12494118,180.62,180.57,3.01]
[1753052392611,3.14,180.58,180.57,3.01]
[1753052393017,8.6747,180.58,180.57,3.01]
[1753052394019,8.675,180.57,180.56,108.47]
[1753052394618,5.5348,180.58,180.56,108.47]
[1753052394818,8.6748,180.58,180.57,3.01]
[1753052396918,5.535,180.57,180.56,105.5]
[1753052397118,8.675,180.57,180.56,108.51]
[1753052397320,5.5346,180.59,180.57,3.01]
[1753052397516,3.14,180.59,180.58,3.01]
[1753052397914,3.14,180.62,180.56,105.5]
[1753052398515,3.13,180.59,180.56,108.63]
[1753052398816,3.13,180.59,180.58,3.13]
[1753052399013,8.6644,180.59,180.58,3.13]
[1753052399212,3.13,180.59,180.56,105.5]
[1753052399517,3.13,180.58,180.57,3.13]